Cogmind - Beta 17 @@@ ROGUE MODE // 2026.06.29 @ 17:34:31 Player: THN-L0C Result: Destroyed by U6-6K6(R) with Subdweller Machine Gun Performance ------------- Evolutions (0) 0 Regions Visited (2) 400 Robots Destroyed (22) 110 Value Destroyed (430) 430 Prototype IDs (0) 0 Alien Tech Used (0) 0 Bonus (0) 0 TOTAL SCORE: 940 Bonus ------- None Cogmind --------- Core Integrity 0/250 Matter 293/300 Energy 100/100 System Corruption 0% Temperature Cool (0) Movement Walking (190) Ox1 Location -10/Subcaves Parts ------- > --- POWER (1) -------- (None) > --- PROPULSION (2) --- Aluminum Leg > --- UTILITY (2) ------ Improved Terrain Scanner Terrain Scan Processor > --- WEAPON (2) ------- Subdweller Machine Gun Subdweller Shrapnel Launcher > --- INVENTORY (5) ---- High-capacity Matter Pod (49) Subdweller Beam Cannon Light Assault Rifle Plasma Cutter Multitool Peak State ------------ > --- POWER ------------ Improved Ion Engine > --- PROPULSION ------- Aluminum Leg > --- UTILITY ---------- Improved Terrain Scanner Terrain Scan Processor > --- WEAPON ----------- Light Assault Rifle Subdweller Machine Gun > --- INVENTORY -------- Improved Ion Engine Subdweller Beam Cannon Subdweller Shrapnel Launcher Plasma Cutter Multitool [Rating: 12] Favorites ----------- Power Improved Ion Engine Engine Improved Ion Engine Propulsion Aluminum Leg Leg Aluminum Leg Wheel Compact Wheel Utility Improved Terrain Scanner Device Improved Terrain Scanner Storage Huge Storage Unit Processor Terrain Scan Processor Protection Core Shielding Weapon Light Assault Rifle Energy Cannon Subdweller Beam Cannon Ballistic Gun Light Assault Rifle Launcher Subdweller Shrapnel Launcher Build | -11 -10 -10 ------- Run | Yrd Mat Sub Slots Evolved . | . . . Power . | . . . Propulsion . | . . . Utility . | . . . Weapon . | . . . Parts Attached 21 | 9 4 8 Power 4 | 2 1 1 Engine 4 | 2 1 1 Core . | . . . Reactor . | . . . Propulsion 4 | 3 1 . Treads . | . . . Leg 2 | 2 . . Wheel 2 | 1 1 . Hover . | . . . Flight . | . . . Utility 7 | 2 2 3 Device 3 | 1 . 2 Storage 2 | 1 1 . Processor 1 | . . 1 Hackware . | . . . Protection 1 | . 1 . Artifact . | . . . Weapon 6 | 2 . 4 Energy Gun . | . . . Energy Cannon 1 | . . 1 Ballistic Gun 4 | 2 . 2 Ballistic Cannon . | . . . Launcher 1 | . . 1 Special Weapon . | . . . Impact Weapon . | . . . Slashing Weapon . | . . . Piercing Weapon . | . . . Special Melee Weapon . | . . . Unidentified Prototypes . | . . . Parts Lost 4 | . . 4 Power 2 | . . 2 Propulsion 2 | . . 2 Utility . | . . . Weapon . | . . . Highest Loss Streak 2 | . . 2 To Critical Strikes . | . . . Average Backups 8 | 4 11 8 Power 1 | . 2 1 Propulsion . | . 1 . Utility 3 | 1 5 3 Weapon 2 | 1 2 2 Tool/Special . | . . . Unused Backups 13 | . 2 11 Power 2 | . . 2 Propulsion . | . . . Utility 5 | . 2 3 Weapon 4 | . . 4 Tool/Special 2 | . . 2 Average Slot Usage (%) 86 | . 98 85 Engine 13 | . 13 13 Leg 12 | . 7 12 Wheel 4 | . 20 2 Device 9 | . 7 9 Storage 5 | . 14 5 Processor 7 | . . 7 Protection 4 | . 7 4 Ballistic Gun 24 | . 28 24 Launcher 3 | . . 3 Peak Build Rating 12 | 7 10 12 Average Rating 10 | 5 9 10 On Entrance 5 | . 7 10 Avg Prop Armor Cover (%) . | . . . Naked Turns . | . . . Heaviest Build 91 | 14 91 91 Greatest Support 32 | 20 32 32 Greatest Overweight (x) 9 | . 2 9 Average Overweight (x) 2 | . 1 2 Largest Inventory Capacity 25 | 8 25 25 Average Capacity 12 | 7 20 12 Most Carried 17 | 7 15 17 Average Carried 8 | 4 11 8 Final Capacity 25 | 8 25 5 Final Carried 15 | 7 15 5 Class Distribution -------------------- 100% | Mutant Dominant Class ---------------- Mutant | -10/Materials Mutant | -10/Subcaves Resources | -11 -10 -10 ----------- Run | Yrd Mat Sub Matter Collected 1593 | 435 332 826 Remotely . | . . . Salvage Created 702 | 207 282 213 Parts 50 | 25 12 13 Haulers Intercepted 1 | . 1 . Recyclers Shooed . | . . . Parts Field Recycled . | . . . Retrieved Matter . | . . . Parts Self-Destructed 12 | . . 12 Prevented . | . . . Parts Restored . | . . . Kills | -11 -10 -10 ------- Run | Yrd Mat Sub Combat Hostiles Destroyed 12 | . 4 8 Guns 11 | . 4 7 AOE 1 | . . 1 Classes Destroyed 8 | 3 2 3 Worker 2 | 2 . . Tunneler 5 | 5 . . Hauler 1 | . 1 . Recycler 2 | 1 1 . Swarmer 3 | . . 3 Grunt 4 | . 4 . Artisan 1 | . . 1 Subdweller 5 | . . 5 Best Kill Streak 3 | 3 3 3 Combat Bots Only 3 | . 2 3 Max Kills in Single Turn 1 | 1 1 1 Gunslinging . | . . . Exploded 1 | . . 1 Melee . | . . . Uniques/NPCs Destroyed . | . . . Combat | -11 -10 -10 -------- Run | Yrd Mat Sub Hostile Shots Fired 56 | . 20 36 Missed 9 | . 4 5 Hits 47 | . 16 31 Projectile 47 | . 16 31 AOE 3 | . . 3 Damage Taken 856 | . 238 618 Core 252 | . 50 202 Absorbed by Shields . | . . . Redirected to Shielding 21 | . 6 15 Regen/Repaired (Parts) 66 | . 66 . Core Remaining (%) 100 | 100 . . Volleys Fired 62 | 16 22 24 Largest 2 | 2 2 2 Hottest 110 | 40 40 110 Shots Fired 114 | 32 44 38 Gun 108 | 32 44 32 Cannon 5 | . . 5 Launcher 1 | . . 1 Special . | . . . Kinetic 109 | 32 44 33 Thermal 5 | . . 5 Explosive . | . . . Electromagnetic . | . . . Robot Hit Streak 15 | 7 15 14 Robot Miss Streak 2 | 1 2 1 Penetration Max . | . . . Secondary Targets 1 | . . 1 Max Gunslinging Chain 1 | . . 1 Shots Hit Robots 79 | 21 29 29 Core Hits 38 | 10 14 14 Critical Kills . | . . . Critical Parts Destroyed . | . . . Critical Strikes . | . . . Melee Attacks . | . . . Impact . | . . . Slashing . | . . . Piercing . | . . . Sneak Attacks . | . . . Combat Hostiles . | . . . Follow-up Attacks . | . . . Damage Inflicted 1007 | 241 302 464 Guns 873 | 241 302 330 Cannons 108 | . . 108 Explosions 26 | . . 26 Melee . | . . . Ramming . | . . . Kinetic 899 | 241 302 356 Thermal 108 | . . 108 Explosive . | . . . Electromagnetic . | . . . Impact . | . . . Slashing . | . . . Piercing . | . . . Highest Corruption . | . . . Average Corruption . | . . . Corruption Purged . | . . . Corruption Blocked . | . . . Overload Shots . | . . . Overflow Damage . | . . . Projectiles . | . . . Explosions . | . . . Melee . | . . . Knockbacks . | . . . Impact . | . . . Kinetic . | . . . Secondary . | . . . Self-Inflicted Damage . | . . . Shots . | . . . Rammed . | . . . Targets Rammed . | . . . Kicked . | . . . Crushed . | . . . Highest Temperature 24 | . 24 16 Average Temperature 5 | . 5 4 Received Heat Transfer 150 | . 108 42 Siege Activations . | . . . Martial Activations . | . . . Shielding Activations . | . . . Robots Disrupted . | . . . Combat Hostiles . | . . . Robots Corrupted . | . . . Combat Hostiles . | . . . Parts Fried . | . . . Impact Corruptions . | . . . Robots Melted . | . . . Combat Hostiles . | . . . Parts Melted 1 | . . 1 Heat Transferred 148 | . . 148 Parts Sabotaged . | . . . Parts Stolen . | . . . Parts Stripped . | . . . Power Chain Reactions . | . . . Alert | -11 -10 -10 ------- Run | Yrd Mat Sub Maximum Alert Level . | . . . Low Security (%) 100 | 100 100 . Level 1 . | . . . Level 2 . | . . . Level 3 . | . . . Level 4 . | . . . Level 5 . | . . . High Security . | . . . Max Security . | . . . Peak Influence 50 | 10 50 . Initial . | . . . Average 8 | 1 11 . Influence Increases 239 | 40 129 70 Destroy 0b10 Robot/C 140 | . 80 60 Destroy 0b10 Robot/NC 50 | 40 10 . Destroy Leader 32 | . 22 10 Successful Hack 17 | . 17 . Influence Decreases 239 | 40 129 70 Time Decay 239 | 40 129 70 Squads Dispatched 2 | . 2 . Investigation 1 | . 1 . Extermination . | . . . Reinforcement 1 | . 1 . Assault . | . . . Garrison . | . . . Intercept . | . . . Searches Triggered . | . . . Construction Impeded . | . . . Haulers Reinforced . | . . . Active Scanning Responses . | . . . Cargo Convoy Interrupts . | . . . Stealth | -11 -10 -10 --------- Run | Yrd Mat Sub Distress Signals . | . . . Communications Jammed . | . . . Distress Signals . | . . . Times Spotted 14 | . 5 9 Peak Tracking Total 2 | . 2 2 Tactical Retreats . | . . . Traps | -11 -10 -10 ------- Run | Yrd Mat Sub Traps Triggered 2 | . 2 . Indirectly . | . . . Trap Hack Attempts . | . . . Triggered . | . . . Disarmed . | . . . Reprogrammed . | . . . Reused . | . . . Traps Extracted . | . . . Installed . | . . . Triggered . | . . . Machines | -11 -10 -10 ---------- Run | Yrd Mat Sub Machines Disabled . | . . . Max in Single Turn . | . . . Machines Repaired . | . . . Machines Dismantled . | . . . Machines Sabotaged . | . . . Overloaded Fab Kills . | . . . Hacking | -11 -10 -10 --------- Run | Yrd Mat Sub Machines Accessed 2 | . 2 . Terminals 1 | . 1 . Fabricators . | . . . Repair Stations 1 | . 1 . Recycling Units . | . . . Scanalyzers . | . . . Garrison Access . | . . . Total Hacks 7 | . 7 . Successful 5 | . 5 . Failed 2 | . 2 . Catastrophic . | . . . Database Lockouts . | . . . Manual 1 | . 1 . Terminals 2 | . 2 . Fabricators . | . . . Repair Stations 5 | . 5 . Recycling Units . | . . . Scanalyzers . | . . . Garrison Access . | . . . Terminal Hacks . | . . . Fabricator Hacks . | . . . Repair Station Hacks 4 | . 4 . Scan Component 2 | . 2 . Repair 2 | . 2 . Recycling Unit Hacks . | . . . Scanalyzer . | . . . Garrison Access Hacks . | . . . Unauthorized Hacks 1 | . 1 . Terminals 1 | . 1 . Botnet 1 | . 1 . Fabricators . | . . . Repair Stations . | . . . Recycling Units . | . . . Scanalyzers . | . . . Garrison Access . | . . . Data Cores Recovered . | . . . Used . | . . . Hacking Detections 1 | . 1 . Full Trace Events . | . . . Feedback Events . | . . . Feedback Blocked . | . . . Robot Schematics Acquired . | . . . Robots Built . | . . . Authchips . | . . . Time . | . . . Total Robot Build Rating . | . . . Part Schematics Acquired . | . . . Parts Built . | . . . Authchips . | . . . Time . | . . . Total Part Build Rating . | . . . Part Studies Acquired . | . . . Parts Repaired 2 | . 2 . Time 58 | . 58 . Parts Recycled . | . . . Recycled Matter . | . . . Retrieved Matter . | . . . Retrieved Components . | . . . Parts Scanalyzed . | . . . Part Schematics Acquired . | . . . Parts Damaged . | . . . Bothacking | -11 -10 -10 ------------ Run | Yrd Mat Sub Used RIF Installer . | . . . Robots Hacked . | . . . Non-combat . | . . . Combat . | . . . Robot Hacks Applied . | . . . Relay Couplers Released . | . . . Fabnet Peak Effective % . | . . . Robots Rewired . | . . . Allies Hacked . | . . . Hacks Repelled . | . . . Allies | -11 -10 -10 -------- Run | Yrd Mat Sub Total Allies . | . . . Largest Group . | . . . Highest-Rated Group . | . . . Highest-Rated Ally . | . . . Total Orders . | . . . Ally Attacks . | . . . Total Damage . | . . . Kills . | . . . Allies Corrupted . | . . . Allies Melted . | . . . Intel | -11 -10 -10 ------- Run | Yrd Mat Sub Active Infowar (turns) 3519 | 106 219 3194 Terrain 2855 | . . 2855 Seismic 664 | 106 219 339 Robot Analysis Total . | . . . Derelict Logs Recovered . | . . . Drone Launches . | . . . Drone Recoveries . | . . . Exploration | -11 -10 -10 ------------- Run | Yrd Mat Sub Turns Passed 5780 | 224 454 5102 Spaces Moved 1441 | 131 233 1077 Core 5 | 5 . . Treads . | . . . Legs 891 | 112 65 714 Wheels 545 | 14 168 363 Hover . | . . . Flight . | . . . Fastest Speed 50 | 50 120 120 Average Speed 230 | 115 127 266 Slowest Speed 750 | 120 130 750 Overloaded Moves . | . . . Propulsion Burnouts . | . . . Robots Hopped . | . . . Potential Cave-ins . | . . . Cave-ins Triggered . | . . . Exploration Rate (%) 24 | 5 27 42 Regions Visited 2 Branch Regions 1 Pre-discovered Areas . | . . . Known Exits Taken . | . . . Unknown Exits Taken 2 | 1 1 . Scrap Searched . | . . . Spaces Dug . | . . . Terrain Destroyed 14 | . . 14 Melee . | . . . Projectile . | . . . AOE 14 | . . 14 Terrain Rammed . | . . . Walls Destroyed . | . . . Machines Disabled . | . . . Actions | -11 -10 -10 --------- Run | Yrd Mat Sub Total 3800 | 171 353 3276 Wait 2222 | 9 73 2140 Move 1439 | 130 232 1077 Hop . | . . . Pick Up 27 | 7 13 7 Fast Attach 10 | 6 2 2 Attach 4 | 1 . 3 Detach . | . . . Swap 18 | 2 5 11 Drop 18 | . 6 12 Fire 62 | 16 22 24 Melee . | . . . Ram . | . . . Kick . | . . . Crush . | . . . Escape Stasis . | . . . Rewire . | . . . Trap . | . . . Miscellaneous . | . . . Route ------- -11/Scrapyard -10/Materials (discovered 2 exits: [*Mat] / [*Sub]) -10/Subcaves (discovered 4 exits: [*Mat x2] / [Rec] / [*Scr]) History --------- Turn | Location | Event 12 | -11/Scrapyard | Discovered new exit (range 15) 225 | -11/Scrapyard | Entered Materials 314 | -10/Materials | Build established: Mutant 431 | -10/Materials | Discovered new exit (range 16) 517 | -10/Materials | Repaired Com. Wheel 535 | -10/Materials | Discovered new exit (range 6) 643 | -10/Materials | Repaired Imp. Ion Engine 679 | -10/Materials | Entered Subcaves 680 | -10/Subcaves | Approached by a straggling Scientist 979 | -10/Subcaves | A swath of the cavern ceiling suddenly collapsed 1059 | -10/Subcaves | Core integrity fell below 50% 1150 | -10/Subcaves | Discovered new exit (range 15) 1649 | -10/Subcaves | Shifting Twisted Machinery released Sub. Machine Gun 4939 | -10/Subcaves | Discovered new exit (range 13) 5715 | -10/Subcaves | Discovered new exit (range 11) 5751 | -10/Subcaves | Core integrity fell below 20% 5781 | -10/Subcaves | Destroyed by U6-6K6(R) with Subdweller Machine Gun Last Messages --------------- 04343_ Dropped Imp. Ion Engine. 04346_ Acquired Hcp. Matter Pod. 04411_ 66-KHM(R) destroyed. 04421_ Subatomizers dissect the Sub. Power Source. 04428_ Acquired 26 matter. 04466_ Acquired 4 matter. 04481_ Acquired 17 matter. 04527_ Acquired 15 matter. 04939_ EXIT=FOUND 05696_ AP-C27(u) cries out in pain. 05696_ AP-C27(u) destroyed. 05702_ Acquired 10 matter. 05705_ Subatomizers dissect the Lgt. Ion Engine. 05715_ EXIT=FOUND 05719_ Subatomizers dissect the Lgt. Ion Engine. 05758_ Sub. Beam Cannon shoots sparks and powers down. 05763_ Sub. Power Source melted. 05763_ KR-HZZ(R) destroyed. 05767_ Acquired 41 matter. 05771_ Imp. Ion Engine destroyed. Map ----- +----------------------------------------------------+ | ?????????????????????????????????????????????????? | | ?????????????????????????????????????????????????? | | ?????????????????????????????????????????????????? | | ?????????????????????????????????????????????????? | | ?????????????????????????????????????????????????? | | ?????????????????????????????????????????????????? | | ?????????????????????????????????????????????????? | | ?????????????????????????????????????????????????? | | ?????????????????????????????????????????????????? | | ???????????????????????????#?????????????????????? | | ???#???????????????#?#?#? ??????????????????????? | | ###?#####????#??#?##??#?? ???#?#????????????????? | | ############??????#??#?# ??????????????????????? | | ####?##########??##??#?? #?#???????????????????? | | ##############?##???#?##? ##?#??#???????????????? | | ##############?#???#?#?#?R #?##????#?????????????? | | ########?######?##???#?#? ?###??#??????????????? | | ?#################?#??#?# ??##?#???????????????? | | #?####################?? ??###?##?????????????? | | ########?#########?###?## #?#??#?###????????????? | | #?#?#######?##########?? ##????????#???????????? | | #?#################????## ##?#?#?#?????????????? | | ########?########?##??### ###?##?#???#?????????? | | ###?##########?##?#?#### ##???#???#????????????? | | ##################### ## ###??????????????????? | | #################### " #@ #?##????##????????????? | | # *## ## ## #### <" ! ! ###??????????#????????? | | = | " ####??????#?#????????????? | | #### # # ## ## ######?#???##?###????????????? | | ############## #???#??????????###???????????? | | ################ #???##???????#??????????????? | | ###############?##"####??##?#?#????#?????????????? | | ####################?#???????#?#??#??#???????????? | | ######################?##?#???#?#???????????????## | | #######?#############???###?????????#??????????### | | #################?#?##??????###??#????????????#### | | ###############???##?#???#?###??#????????????##### | | ##########?###???########?########??#??????####### | | ###############?##??###########?####?#?##???###### | | #############???##?####?##?###########???##?###### | | ###########???#??#?##########?###########??####### | | ############?????#?######?###########?############ | | ####????#???????################################?# | | ??###????#?????#############?##################### | | ###?#??????????#####?######################?###### | | ###???????????###?#########?##?################## | | #?????????????#############################?##### | | ##???????????#################################### | | ??##?????????###########??######################## | | #?##?????????############################?######## | +----------------------------------------------------+ Best States ------------- Heat Dissipation 25 Energy Generation 12 Energy Capacity 265 Matter Stores 300 Matter Capacity 300 Sight Range 16 Terrain Scan Range 16 Terrain Scan Density 85 Core Shielding 20 Evasion (%) 55 Item Schematics ----------------- None Robot Schematics ------------------ None Fabricated ------------ Nothing Repaired ---------- Com. Wheel | 66% | -10/Materials Imp. Ion Engine | 20% | -10/Materials Studied --------- None Alien Tech Used ----------------- None Achievements -------------- None Challenges ------------ None Game ------ Seed PlexusOmegaLoader Manual? 0 Play Time 00:19:32 Cumulative 402.3 hours Start 2026.06.29 @ 17:19:05 End 2026.06.29 @ 17:34:31 Sessions 1 Manual Loads 0 Difficulty Rogue Special Mode None Game No. 301 Rogue 301 Adventurer 0 Explorer 0 Win Type - Total 9 Types 4/0/3/2/0/0/0/0/0/0 Lore% 76 Gallery% 72 Achievement% 49 Wizard Run 0 Options --------- Layout 2 ASCII 0 Keyboard 1 Movement Vi Keybinds 0 Fullscreen 2 Font 32/SmallcapsGlow Map View 77x44 Zoom Use 0% Tactical HUD 1 Map Filters NONE Filters NONE Steam 1 RUN: fbba8aaa-8d1d-480e-bbd1-cd77998875bf